[Event "45th FIDE Olympiad 2024"]
[Site "Budapest"]
[Date "2024.09.11"]
[Round "1.24"]
[White "Lusako, Shedrack"]
[Black "Yamada, Kohei"]
[Result "0-1"]
[ECO "B90"]
[WhiteElo "1760"]
[BlackElo "2178"]
[Annotator "ChessBase"]
[PlyCount "100"]
[EventDate "2024.09.05"]
[EventType "team-tourn"]
[EventCountry "HUN"]
[SourceTitle "playchess.com"]
[Source "ChessBase"]
[SourceQuality "1"]
[WhiteTeam "Tanzania"]
[BlackTeam "Japan"]
[WhiteTeamCountry "TAN"]
[BlackTeamCountry "JPN"]
[TimeControl "40/5400+30:1800+30"]

1. e4 c5 2. Nf3 d6 3. d4 cxd4 4. Nxd4 Nf6 5. Nc3 a6 6. a4 e5 7. Nb3 Be7 8. Bc4 O-O 9. O-O Qc7 10. Nd5 Nxd5 11. Bxd5 Nd7 12. Be3 Nf6 13. a5 Nxd5 14. exd5 Bd7 15. Nd2 f5 16. c4 Rae8 17. Qb3 Kh8 18. f3 Bf6 19. Rac1 Qb8 20. Bb6 Bg5 21. Be3 Qd8 22. Bxg5 Qxg5 23. Qxb7 Bc8 24. Qb4 e4 25. fxe4 fxe4 26. Qxd6 Rf6 27. Rxf6 gxf6 28. Rf1 f5 29. Qf4 Qg7 30. b3 Qc3 31. d6 Qxa5 32. Qe3 Qe5 33. Nb1 Qxd6 34. Nc3 Be6 35. Rd1 Qe5 36. Qd4 Qxd4+ 37. Rxd4 Rb8 38. Nxe4 fxe4 39. Rxe4 Bf7 40. Re3 Kg7 41. Kf2 a5 42. Ke2 Rxb3 43. Re7 Kf6 44. Rc7 a4 45. g4 a3 46. h4 a2 47. Ra7 Bxc4+ 48. Kf2 Rb1 49. Rxh7 a1=Q 50. g5+ Ke5 0-1

[Event "45th FIDE Olympiad 2024"]
[Site "Budapest"]
[Date "2024.09.11"]
[Round "1.25"]
[White "Christiansen, Johan-Sebastian"]
[Black "Lee, Junhyeok"]
[Result "1-0"]
[ECO "B94"]
[WhiteElo "2661"]
[BlackElo "2364"]
[Annotator "TA"]
[PlyCount "33"]
[EventDate "2024.09.05"]
[EventType "team-tourn"]
[EventCountry "HUN"]
[SourceTitle "playchess.com"]
[Source "ChessBase"]
[SourceQuality "1"]
[WhiteTeam "Norway"]
[BlackTeam "South Korea"]
[WhiteTeamCountry "NOR"]
[TimeControl "40/5400+30:1800+30"]

{[%evp 13,33,14,18,20,10,16,41,54,39,43,43,45,40,-97,305,316,414,409,393,256,395,349]} 1. e4 {[%emt 0:00:04]} c5 {[%emt 0:00:08]} 2. Nf3 {[%emt 0:00:30]} d6 {[%emt 0:00:07]} 3. d4 {[%emt 0:00:47]} cxd4 {[%emt 0:00:08]} 4. Nxd4 {[%emt 0:00:23]} Nf6 {[%emt 0:00:07]} 5. Nc3 {[%emt 0:00:07]} a6 {[%emt 0:00:06]} 6. Bg5 {[%emt 0:01:43]} Nbd7 {[%emt 0:00:43]} 7. Bc4 {[%emt 0:01:17]} e6 {[%emt 0:01:22]} 8. Qe2 {[%emt 0:07:48]} b5 {[%emt 0:01:08][%cal Bb7b5,Bb5b4][%mdl 32]} 9. Bb3 {[%emt 0:10:58]} Qc7 {[%emt 0:01:11]} 10. O-O-O {[%emt 0:08:10][%cal Ob3e6] White is slightly better.} b4 {[%emt 0:02:23] [#]} 11. Nd5 {[%emt 0:16:24]} exd5 {[%emt 0:00:27]} 12. exd5+ {[%emt 0:00:08]} Be7 {[%emt 0:00:17][%cal Oe8g8]} 13. Rde1 {[%emt 0:19:48] [#]} (13. Nf5 Ne5 14. Nxg7+ Kf8 $19) (13. Nc6 $1 $14 {stays ahead.} Ne5 14. Nxe5 dxe5 15. d6 Bxd6 16. Bxf6 gxf6 17. Qf3) 13... O-O $2 {[%emt 0:08:50][%mdl 8192] This costs Black the game.} 14. Qxe7 $18 {[%emt 0:00:06] Bxf6 is the strong threat.} Re8 {[%emt 0:00:28]} 15. Qxe8+ {[%emt 0:00:34]} Nxe8 {[%emt 0:00:06]} 16. Rxe8+ {[%emt 0:00:06]} Nf8 {[%emt 0:00:02]} 17. Rhe1 {[%emt 0:09:19] Weighted Error Value: White=0.21 (precise) /Black=0.85.  Loses game:     	---       	Black=1      Mistake:       	White=1     	---        Inaccurate:     	---       	Black=2      OK:         	White=5     	Black=3      Best:        	White=1     	Black=1} 1-0

[Event "45th FIDE Olympiad 2024"]
[Site "Budapest"]
[Date "2024.09.11"]
[Round "1.25"]
[White "Murphy, Jones"]
[Black "Zhakshylykov, Erzhan"]
[Result "0-1"]
[ECO "C54"]
[WhiteElo "2021"]
[BlackElo "2327"]
[Annotator "ChessBase"]
[PlyCount "66"]
[EventDate "2024.09.05"]
[EventType "team-tourn"]
[EventCountry "HUN"]
[SourceTitle "playchess.com"]
[Source "ChessBase"]
[SourceQuality "1"]
[WhiteTeam "Dominica"]
[BlackTeam "Kyrgyzstan"]
[WhiteTeamCountry "DMA"]
[BlackTeamCountry "KGZ"]
[TimeControl "40/5400+30:1800+30"]

1. e4 e5 2. Nf3 Nc6 3. Bc4 Bc5 4. c3 Nf6 5. d4 exd4 6. cxd4 Bb4+ 7. Nc3 Nxe4 8. O-O Bxc3 9. d5 Bf6 10. Re1 Ne7 11. Rxe4 d6 12. Bg5 Bxg5 13. Nxg5 h6 14. Qe2 hxg5 15. Re1 Be6 16. dxe6 f6 17. Re3 c6 18. Rh3 Rxh3 19. gxh3 g6 20. b4 Kf8 21. Qb2 Kg7 22. Re3 Qb6 23. Rg3 d5 24. Bd3 c5 25. Rg4 c4 26. Bf1 Rc8 27. Qc3 Nf5 28. e7 Qe6 29. h4 Qe5 30. Qh3 Qxe7 31. hxg5 fxg5 32. Qg2 c3 33. Qxd5 c2 0-1

[Event "45th FIDE Olympiad 2024"]
[Site "Budapest"]
[Date "2024.09.11"]
[Round "1.26"]
[White "Khoroshev, Nikita"]
[Black "Bridet, Robert"]
[Result "1-0"]
[ECO "C65"]
[WhiteElo "2355"]
[BlackElo "1697"]
[Annotator "ChessBase"]
[PlyCount "43"]
[EventDate "2024.09.05"]
[EventType "team-tourn"]
[EventCountry "HUN"]
[SourceTitle "playchess.com"]
[Source "ChessBase"]
[SourceQuality "1"]
[WhiteTeam "Kyrgyzstan"]
[BlackTeam "Dominica"]
[WhiteTeamCountry "KGZ"]
[BlackTeamCountry "DMA"]
[TimeControl "40/5400+30:1800+30"]

1. e4 e5 2. Nf3 Nc6 3. Bb5 Bc5 4. c3 Nf6 5. O-O O-O 6. d4 Bb6 7. dxe5 Nxe4 8. Qd5 Nc5 9. Be3 Ne7 10. Qd1 h6 11. Nbd2 Nf5 12. Bd4 Nxd4 13. cxd4 Ne6 14. d5 Nf4 15. d6 f6 16. Ne4 fxe5 17. Bc4+ Kh8 18. g3 Ng6 19. Nfg5 Qe8 20. Qh5 Rf5 21. Bf7 Rxf7 22. Qxg6 1-0

[Event "45th FIDE Olympiad 2024"]
[Site "Budapest"]
[Date "2024.09.11"]
[Round "1.26"]
[White "Ahn, Hongjin"]
[Black "Tari, Aryan"]
[Result "1/2-1/2"]
[ECO "B23"]
[WhiteElo "2251"]
[BlackElo "2642"]
[Annotator "TA"]
[PlyCount "165"]
[EventDate "2024.09.05"]
[EventType "team-tourn"]
[EventCountry "HUN"]
[SourceTitle "playchess.com"]
[Source "ChessBase"]
[SourceQuality "1"]
[WhiteTeam "South Korea"]
[BlackTeam "Norway"]
[BlackTeamCountry "NOR"]
[TimeControl "40/5400+30:1800+30"]

{[%evp 9,165,-22,-12,-14,9,6,0,-7,0,0,12,0,16,10,21,16,35,0,0,-6,21,43,38,48,95,97,93,94,102,86,106,100,85,90,83,93,91,91,80,101,83,75,83,95,81,89,106,73,71,76,87,75,87,133,135,144,138,132,147,138,143,139,137,133,135,115,138,135,132,111,231,72,138,138,262,239,257,27,238,256,208,206,172,136,277,347,363,316,326,289,287,109,108,110,110,110,110,110,110,110,110,110,110,110,110,110,103,88,88,88,88,88,88,88,88,88,88,88,88,88,88,0,0,0,88,88,88,88,88,0,0,0,0,0,7,0,0,0,8,0,0,0,0,0,0,0,0,0,0,0,0,0,0,0,0,0,0,0]} 1. e4 {[%emt 0:00:06]} c5 {[%emt 0:00:12]} 2. Nc3 {[%emt 0:00:18]} Nc6 {[%emt 0:00:15]} 3. f4 {[%emt 0:00:11]} g6 {[%emt 0:00:31]} 4. Nf3 {[%emt 0:00:08]} Bg7 {[%emt 0:00:10]} 5. a4 {[%emt 0:00:19]} e6 {[%emt 0:06:56]} 6. e5 {[%emt 0:00:13]} d6 {[%emt 0:04:22][%cal Rd6e5]} 7. Bb5 {[%emt 0:00:27]} Nge7 {[%emt 0:07:40][%cal Rd6e5]} 8. Ne4 {[%emt 0:00:15]} dxe5 {[%emt 0:02:55]} 9. fxe5 {[%emt 0:00:27][%cal Od2d4]} O-O {[%emt 0:01:23]} 10. Nf6+ {[%emt 0:00:16]} Kh8 {[%emt 0:08:18][%cal Oc6e5] [#]} 11. d4 {[%emt 0:00:26]} Nd5 {[%emt 0:13:23]} (11... a6 12. Bxc6) 12. Bxc6 {[%emt 0:26:09]} (12. dxc5 Nxe5 13. Ne4 Nxf3+ 14. Qxf3 f5 $17) 12... bxc6 {[%emt 0:00:23]} 13. Ne4 {[%emt 0:01:28] A dynamic duo of knights.} cxd4 {[%emt 0:02:32]} 14. Qxd4 {[%emt 0:00:42]} c5 {[%emt 0:14:53]} 15. Qxc5 {[%emt 0:18:07]} Ba6 {[%emt 0:00:30]} 16. Nd6 {[%emt 0:01:57] Prevents Rc8} f6 {[%emt 0:09:08]} (16... Qd7 $14) 17. c4 $16 {[%emt 0:02:54]} Nb6 {[%emt 0:03:29][%cal Ob6c4,Bd5b6,Bb6d7,Bd7e5,Be5d3,Bd3b4,Bb4a2,Ba2c3,Bc3e4][%mdl 32]} 18. b3 {[%emt 0:03:31]} Nd7 {[%emt 0:01:28]} 19. Qc6 {[%emt 0:09:20] White is much more active.} Nxe5 {[%emt 0:00:22]} 20. Qxa6 {[%emt 0:04:54] Hoping for 0-0.} f5 {[%emt 0:05:54]} 21. Rb1 $1 {[%emt 0:07:37]} (21. Nxe5 Bxe5 22. Rb1 Bxd6 23. Bb2+ Kg8 $11) 21... Nd3+ {[%emt 0:02:06]} 22. Ke2 {[%emt 0:01:56]} Nb4 {[%emt 0:00:02]} 23. Qb5 {[%emt 0:01:11]} (23. Ng5 Kg8 24. Qb7 (24. Nxe6 $2 Qd7 $19) 24... Qxd6 $15) 23... Na2 {[%emt 0:02:56]} 24. Qc6 $1 {[%emt 0:13:45]} Nc3+ {[%emt 0:01:32]} 25. Kf2 $1 {[%emt 0:01:35]} Qxd6 {[%emt 0:06:27]} 26. Qxd6 {[%emt 0:00:02]} Ne4+ {[%emt 0:00:03]} 27. Ke2 {[%emt 0:00:15]} Nxd6 {[%emt 0:00:01]} 28. Ba3 {[%emt 0:01:08]} Rfd8 {[%emt 0:00:39]} 29. Ng5 $36 {[%emt 0:01:28][%cal Oa3d6][%mdl 2048] White is on the roll.} Kg8 {[%emt 0:02:04]} 30. Rhd1 {[%emt 0:02:44]} (30. Nxe6 $2 Re8 31. Rhe1 Rxe6+ $19) 30... Nf7 {[%emt 0:00:17]} 31. Nxf7 $1 {[%emt 0:01:32]} (31. Nxe6 $2 Re8 32. h3 Rxe6+ $19) 31... Kxf7 {[%emt 0:00:02]} 32. Bc5 {[%emt 0:00:37]} Ke8 {[%emt 0:03:13]} 33. Rxd8+ {[%emt 0:00:22]} Kxd8 {[%emt 0:00:02][%mdl 4096] Endgame. KRB-KRB} 34. Rd1+ {[%emt 0:00:36]} Kc7 {[%emt 0:00:01]} 35. Bd6+ $1 {[%emt 0:00:09]} Kc6 {[%emt 0:01:34]} 36. b4 {[%emt 0:00:22]} a6 {[%emt 0:00:03]} 37. Rd2 {[%emt 0:00:55]} Bh6 {[%emt 0:01:21]} 38. Rd3 {[%emt 0:00:15]} e5 {[%emt 0:00:03]} 39. Rd5 {[%emt 0:00:38]} ({Worse is} 39. Bxe5 Re8 40. Rd6+ Kb7 41. Rd7+ Ka8 $17) 39... e4 {[%emt 0:00:24]} (39... Rd8 $16 {was worth a try.} 40. b5+ (40. Bxe5 Rxd5 41. cxd5+ Kxd5 $11) 40... axb5 41. axb5+ Kb7) 40. Bc5 $2 {[%emt 0:00:28]} (40. Be5 $1 $18 {is the precise move to win. Rd6+ is the strong threat.} Rc8 41. Rd6+ Kb7 42. Rd7+ Kc6 43. Rxh7) 40... Bf4 {[%emt 0:02:21] Prevents Rd6+.} ({Black should try} 40... Bf8) 41. g3 {[%emt 0:30:22]} Bc7 {[%emt 0:30:28]} (41... Bg5 $16 42. Re5 Rd8) 42. b5+ $18 {[%emt 0:00:50]} axb5 {[%emt 0:00:14]} 43. axb5+ {[%emt 0:00:04]} Kb7 {[%emt 0:00:02]} 44. Rd7 $1 {[%emt 0:00:27]} Kc8 {[%emt 0:01:19]} 45. Rxh7 {[%emt 0:00:47]} Ra2+ {[%emt 0:00:00]} 46. Ke3 {[%emt 0:00:00] Threatens to win with b6.} Rb2 {[%emt 0:00:00]} (46... Bd8 $16) 47. Kd4 {[%emt 0:00:00]} Rd2+ {[%emt 0:00:00]} 48. Kc3 $1 {[%emt 0:00:00]} Ba5+ {[%emt 0:00:00]} 49. Kb3 {[%emt 0:00:00]} Bd8 {[%emt 0:00:00][%cal Oe4e3]} 50. Ba7 {[%emt 0:00:00]} (50. Rh8 $18 {has better winning chances.} Kd7 51. Rh7+ Kc8 52. Kb4 Rb2+ 53. Kc3 Bf6+ 54. Bd4 Bxd4+ 55. Kxd4) 50... e3 $16 {[%emt 0:00:00]} 51. b6 $1 {[%emt 0:00:00][%csl Gh7][%cal Rb6b7]} ({Don't play} 51. Bxe3 $6 Rd3+ 52. Kb4 Rxe3 $11) 51... Rd7 {[%emt 0:00:00]} 52. Rxd7 {[%emt 0:00:00]} Kxd7 {[%emt 0:00:00] KB-KB} 53. Kc2 {[%emt 0:00:00] aiming for b7.} Kc6 {[%emt 0:00:00][%cal Oc6b7]} 54. Kd3 {[%emt 0:00:00]} (54. b7 {simplifies} Kxb7 55. Bxe3 Be7 56. Kd2) 54... Bg5 {[%emt 0:00:00] [#]} 55. b7 $1 {[%emt 0:00:08][%mdl 512]} Kxb7 {[%emt 0:00:00]} 56. Bxe3 {[%emt 0:00:06]} Bf6 {[%emt 0:00:00]} 57. h3 {[%emt 0:01:26]} Kc6 {[%emt 0:00:00]} 58. g4 {[%emt 0:00:15]} fxg4 {[%emt 0:00:00]} 59. hxg4 {[%emt 0:00:02] Ke4 would now be deadly.} Be7 {[%emt 0:01:08]} 60. Ke4 {[%emt 0:00:16] Black must now prevent Ke5.} Bd6 {[%emt 0:00:15] [#]} 61. c5 $1 {[%emt 0:04:42]} Bc7 {[%emt 0:00:31]} 62. Bd4 {[%emt 0:00:47]} Bg3 {[%emt 0:00:27]} 63. Be5 $1 {[%emt 0:01:27]} Be1 {[%emt 0:00:08]} 64. Bd6 {[%emt 0:00:27]} Bc3 {[%emt 0:00:18] [#]} 65. Kf4 {[%emt 0:00:09]} (65. Be7 $1 $16) 65... Bf6 $11 {[%emt 0:00:05]} 66. Ke4 {[%emt 0:00:47]} ({White has to play} 66. g5 $1 $11 Bd8 67. Ke4) 66... Bc3 $1 $16 {[%emt 0:00:22] [#]} 67. Be7 $1 {[%emt 0:00:33] Repels Bf6} Kd7 {[%emt 0:00:33]} 68. Bf8 {[%emt 0:00:23] Strongly threatening Kd5.} Kc6 {[%emt 0:00:09]} 69. Kf4 {[%emt 0:00:30]} (69. Bd6 $16) 69... Bf6 $11 {[%emt 0:00:11] The position is equal.} 70. Bd6 {[%emt 0:00:43]} Kd5 {[%emt 0:00:16]} 71. Bf8 {[%emt 0:00:28]} Bd8 {[%emt 0:00:34]} 72. Bd6 {[%emt 0:00:35]} Bf6 {[%emt 0:00:05]} 73. Bf8 {[%emt 0:00:31]} Bd8 {[%emt 0:00:06]} 74. Kf3 {[%emt 0:00:25]} Bg5 {[%emt 0:00:16]} 75. Ke2 {[%emt 0:00:22]} Bf4 {[%emt 0:01:12]} 76. Kd3 {[%emt 0:00:09]} Be5 {[%emt 0:00:10]} 77. Be7 {[%emt 0:00:12]} Bc7 {[%emt 0:00:18]} 78. Kc3 {[%emt 0:00:19]} Ba5+ {[%emt 0:00:11]} 79. Kb3 {[%emt 0:00:08] And now Ka4 would win.} Be1 {[%emt 0:00:03]} 80. Bd6 {[%emt 0:01:34]} Bd2 {[%emt 0:00:12]} 81. Ka4 {[%emt 0:00:12]} Kc6 {[%emt 0:00:05]} 82. Kb3 {[%emt 0:00:28]} Kd5 {[%emt 0:00:01]} 83. Ka4 {[%emt 0:00:08] Blacks defense is rewarded with a draw.   Weighted Error Value: White=0.10 (very precise) /Black=0.14 (very precise) .  Loses game:     	---       	Black=1      Missed win:     	White=1     	---        Mistake:       	White=4     	Black=5      Inaccurate:     	White=2     	Black=1      OK:         	White=27    	Black=38     Best:        	White=8     	Black=15     Strong:       	White=10    	Black=1      Brilliant:      	White=1     	---} 1/2-1/2

[Event "45th FIDE Olympiad 2024"]
[Site "Budapest"]
[Date "2024.09.11"]
[Round "1.27"]
[White "Amar, Elham"]
[Black "Yun, Hungi"]
[Result "1-0"]
[ECO "B90"]
[WhiteElo "2539"]
[BlackElo "2124"]
[Annotator "TA"]
[PlyCount "43"]
[EventDate "2024.09.05"]
[EventType "team-tourn"]
[EventCountry "HUN"]
[SourceTitle "playchess.com"]
[Source "ChessBase"]
[SourceQuality "1"]
[WhiteTeam "Norway"]
[BlackTeam "South Korea"]
[WhiteTeamCountry "NOR"]
[TimeControl "40/5400+30:1800+30"]

{[%evp 11,43,22,23,0,14,29,30,29,30,7,63,16,42,51,49,41,59,45,80,83,67,51,48,60,85,77,84,79,72,87,203,122,472,420]} 1. e4 {[%emt 0:00:02]} c5 {[%emt 0:00:14]} 2. Nf3 {[%emt 0:00:07]} d6 {[%emt 0:00:31]} 3. d4 {[%emt 0:00:04]} cxd4 {[%emt 0:00:09]} 4. Nxd4 {[%emt 0:00:05]} Nf6 {[%emt 0:00:10][%cal Bg8f6,Bf6d7,Bd7e5][%mdl 32]} 5. Nc3 {[%emt 0:00:08]} a6 {[%emt 0:00:10]} 6. f3 {[%emt 0:00:14]} e6 {[%emt 0:00:59]} 7. a3 {[%emt 0:00:55]} b5 {[%emt 0:04:57]} 8. g4 {[%emt 0:06:29][%cal Bg2g4,Bg4g5][%mdl 32]} Bb7 {[%emt 0:12:30]} 9. g5 {[%emt 0:11:01] White has an edge.} Nfd7 {[%emt 0:00:16]} 10. Be3 {[%emt 0:00:26]} Nc6 {[%emt 0:05:23]} ({Black should play} 10... Nb6 $11) 11. h4 {[%emt 0:09:24] White is more active.} (11. Nxc6 $14 {might be stronger.} Bxc6 12. h4) 11... Rc8 {[%emt 0:06:06]} 12. Nxc6 {[%emt 0:08:23]} Rxc6 {[%emt 0:07:04]} 13. Qd2 {[%emt 0:00:14]} Ne5 {[%emt 0:03:23]} 14. Be2 {[%emt 0:02:45]} Qc7 {[%emt 0:05:14]} 15. Bd4 {[%emt 0:04:28]} Be7 {[%emt 0:15:05]} 16. O-O-O {[%emt 0:05:29]} (16. f4 $5) 16... O-O {[%emt 0:03:00]} 17. h5 {[%emt 0:03:35]} Ba8 {[%emt 0:03:11] [#]} 18. g6 $1 {[%emt 0:11:32] h6 would now be deadly.} h6 {[%emt 0:06:32]} 19. f4 {[%emt 0:09:54]} Nc4 {[%emt 0:00:28] [#]} 20. Qd3 {[%emt 0:01:12]} fxg6 {[%emt 0:02:34]} (20... Qb7 $16) 21. Bg4 {[%emt 0:01:02]} (21. hxg6 $6 Rxf4 22. Rh5 (22. Qh3 Qc8 $15) 22... Ne5 $16) 21... Qd7 {[%emt 0:11:43][%mdl 8192]} (21... Rxf4 $2 {perishes.} 22. Bxe6+ Kh8 23. Nd5 $18 (23. hxg6 Bg5 $18)) (21... d5 $16 22. exd5 Qxf4+ 23. Kb1 Qxg4 24. dxc6 Bxc6) 22. Qh3 {[%emt 0:00:57] Weighted Error Value: White=0.14 (very precise) /Black=0.44.  Loses game:     	---       	Black=1      Mistake:       	White=1     	Black=2      Inaccurate:     	White=1     	Black=2      OK:         	White=7     	Black=4      Best:        	---       	Black=2} (22. hxg6 Rxf4 23. Qh3 Rxg4 24. Qxg4 Rc8 $18) 1-0

[Event "45th FIDE Olympiad 2024"]
[Site "Budapest"]
[Date "2024.09.11"]
[Round "1.27"]
[White "Thomas, Larry"]
[Black "Orozbaev, Eldiyar"]
[Result "0-1"]
[ECO "D35"]
[WhiteElo "1686"]
[BlackElo "2376"]
[Annotator "ChessBase"]
[PlyCount "72"]
[EventDate "2024.09.05"]
[EventType "team-tourn"]
[EventCountry "HUN"]
[SourceTitle "playchess.com"]
[Source "ChessBase"]
[SourceQuality "1"]
[WhiteTeam "Dominica"]
[BlackTeam "Kyrgyzstan"]
[WhiteTeamCountry "DMA"]
[BlackTeamCountry "KGZ"]
[TimeControl "40/5400+30:1800+30"]

1. c4 e6 2. Nf3 d5 3. cxd5 exd5 4. d4 c6 5. Nc3 Bd6 6. g3 Nf6 7. Bg2 O-O 8. O-O Re8 9. Bg5 Nbd7 10. Re1 h6 11. Bc1 b5 12. a3 a5 13. Qc2 Bb7 14. Nd2 Qb6 15. e3 c5 16. dxc5 Nxc5 17. Nf3 Rac8 18. Qd1 Nce4 19. Nxe4 dxe4 20. Nd4 Be5 21. Bf1 Red8 22. Qb3 Rd5 23. Nf5 Qc5 24. Be2 a4 25. Qb4 Qxb4 26. axb4 Kf8 27. Rd1 a3 28. Nd4 Bxd4 29. exd4 Rc2 30. Kf1 axb2 31. Bxb2 Rxb2 32. Ra7 Rd7 33. Bxb5 e3 34. Rda1 Ng4 35. Bxd7 Nxh2+ 36. Kg1 exf2+ 0-1

[Event "45th FIDE Olympiad 2024"]
[Site "Budapest"]
[Date "2024.09.11"]
[Round "1.28"]
[White "Sezdbekov, Ruslan"]
[Black "Francis, Nigel"]
[Result "1-0"]
[ECO "B30"]
[WhiteElo "2251"]
[BlackElo "1775"]
[Annotator "NA"]
[PlyCount "51"]
[EventDate "2024.09.05"]
[EventType "team-tourn"]
[EventCountry "HUN"]
[SourceTitle "playchess.com"]
[Source "ChessBase"]
[SourceQuality "1"]
[WhiteTeam "Kyrgyzstan"]
[BlackTeam "Dominica"]
[WhiteTeamCountry "KGZ"]
[BlackTeamCountry "DMA"]
[TimeControl "40/5400+30:1800+30"]

1. e4 c5 2. Nf3 Nc6 3. Bb5 Nf6 4. e5 Nd5 5. O-O Qc7 6. Re1 a6 7. Bc4 Nb6 8. Bf1 d5 9. exd6 Qxd6 10. Nc3 Bg4 11. h3 Bh5 12. d3 O-O-O 13. Ne4 Qd5 14. g4 Bg6 15. c4 Qd7 16. Nxc5 Qd6 17. Be3 Qc7 18. Qb3 Nd7 19. Nxd7 Rxd7 20. d4 h5 21. d5 Ne5 22. Nxe5 Qxe5 23. f4 Qd6 24. c5 Qxd5 25. c6 Rd6 26. Qxb7+ 1-0

[Event "45th FIDE Olympiad 2024"]
[Site "Budapest"]
[Date "2024.09.11"]
[Round "1.28"]
[White "Huh, Isaak"]
[Black "Urkedal, Frode Olav Olsen"]
[Result "0-1"]
[ECO "C77"]
[WhiteElo "2114"]
[BlackElo "2546"]
[Annotator "TA"]
[PlyCount "92"]
[EventDate "2024.09.05"]
[EventType "team-tourn"]
[EventCountry "HUN"]
[SourceTitle "playchess.com"]
[Source "ChessBase"]
[SourceQuality "1"]
[WhiteTeam "South Korea"]
[BlackTeam "Norway"]
[BlackTeamCountry "NOR"]
[TimeControl "40/5400+30:1800+30"]

{[%evp 13,92,17,20,18,31,12,28,-15,-8,-15,-9,-8,-11,-37,-25,-30,-18,-18,-18,-20,0,0,0,0,0,0,0,0,19,20,25,25,30,0,31,15,7,-8,0,-8,0,0,0,-8,12,-19,-8,-8,-8,-8,0,-8,-8,-15,-8,-8,25,0,0,-81,0,-314,-95,-238,0,-238,-267,-365,-365,-921,-919,-1013,-1013,-1013,-1006,-1006,-991,-991,-977,-904,-880]} 1. e4 {[%emt 0:00:01]} e5 {[%emt 0:00:07]} 2. Nf3 {[%emt 0:00:34]} Nc6 {[%emt 0:00:06]} 3. Bb5 {[%emt 0:00:02]} a6 {[%emt 0:00:06]} 4. Ba4 {[%emt 0:00:03]} Nf6 {[%emt 0:00:05]} 5. d3 {[%emt 0:00:03]} b5 {[%emt 0:00:14]} 6. Bb3 {[%emt 0:00:08]} Bc5 {[%emt 0:00:07]} 7. c3 {[%emt 0:00:04]} d6 {[%emt 0:00:37]} 8. Bg5 {[%emt 0:00:09]} Bb6 {[%emt 0:02:11]} 9. Nbd2 {[%emt 0:05:12]} h6 {[%emt 0:00:27]} 10. Be3 {[%emt 0:12:05] White has an edge.} Bxe3 {[%emt 0:02:04]} 11. fxe3 {[%emt 0:00:04]} Na5 {[%emt 0:07:48]} 12. Bc2 {[%emt 0:03:39]} c5 {[%emt 0:00:05]} 13. d4 {[%emt 0:05:22]} Nc6 {[%emt 0:01:48]} 14. d5 {[%emt 0:05:26]} Ne7 {[%emt 0:00:26]} 15. c4 {[%emt 0:07:34]} Ng6 {[%emt 0:01:01]} 16. a4 {[%emt 0:04:49]} bxc4 {[%emt 0:12:42]} 17. a5 {[%emt 0:07:03]} Bd7 {[%emt 0:03:17]} 18. Nxc4 {[%emt 0:02:11]} Bb5 {[%emt 0:00:11]} 19. Nfd2 {[%emt 0:03:19]} O-O {[%emt 0:06:49][%cal Of6e4] Threatens to win with ...Nxe4!} 20. O-O {[%emt 0:02:57]} Rb8 {[%emt 0:02:35]} 21. Bd3 {[%emt 0:04:41]} Ne8 {[%emt 0:05:55]} 22. Qe2 {[%emt 0:02:02]} Ne7 {[%emt 0:01:45]} 23. b3 {[%emt 0:06:36]} Nc7 {[%emt 0:10:11]} 24. Nb6 {[%emt 0:10:53]} Nc8 {[%emt 0:01:30]} 25. Nxc8 {[%emt 0:02:29]} Qxc8 {[%emt 0:03:23]} 26. Nc4 {[%emt 0:02:07]} Bxc4 {[%emt 0:03:16]} 27. Bxc4 {[%emt 0:00:01]} Rb4 {[%emt 0:01:10]} 28. Rf3 {[%emt 0:02:33][%cal Bf1f3,Bf3g3,Bg3h3,Bh3h5][%mdl 32]} Qg4 {[%emt 0:05:38]} 29. Qd3 {[%emt 0:01:51]} Nb5 {[%emt 0:01:22]} 30. Raf1 {[%emt 0:02:13]} f6 {[%emt 0:00:44]} 31. Rg3 {[%emt 0:00:40]} Qh5 {[%emt 0:00:23]} 32. Rh3 {[%emt 0:03:27]} Qf7 {[%emt 0:00:26]} 33. Qe2 {[%emt 0:00:36]} Rb8 {[%emt 0:05:34]} 34. Qg4 {[%emt 0:00:47]} Kf8 {[%emt 0:02:56]} 35. Rh5 {[%emt 0:02:01]} Na3 {[%emt 0:02:27]} 36. Bxa6 {[%emt 0:01:30]} (36. Be2 $1 $11 {remains equal.} c4 37. Qh4) 36... Rxb3 {[%emt 0:00:02]} (36... Nc2 $1 $17 {[%cal Rc2e3]} 37. Rh3 Rxb3) 37. Bc8 $2 {[%emt 0:02:31][%mdl 8192]} (37. Rxf6 $1 $11 {and White has nothing to worry.} gxf6 (37... Qxf6 $2 38. Rf5 $18) 38. Rxh6 Rb1+ (38... Rxe3 39. Rh8+ Ke7 40. Rxb8 Re1+ 41. Bf1 Rb1 42. Rh8 Rb7 43. Qc8) 39. Kf2) 37... Rb1 $2 {[%emt 0:00:25]} (37... Nc4 $19 {and Black stays clearly on top.} 38. Rh3 Nxe3 39. Rxe3 Rxe3) 38. Be6 {[%emt 0:00:21]} (38. Rhf5 $17 {was the only defense.} Nc4 (38... Rxc8 39. Rxb1 Nxb1 40. Rxf6 $11) 39. Qe2 Nxa5 40. Be6) 38... Rxf1+ $19 {[%emt 0:09:56]} 39. Kxf1 {[%emt 0:00:00] [#]} Nc4 $1 {[%emt 0:03:33][%csl LRa5,LRe3]} 40. Kf2 {[%emt 0:01:44]} (40. Bxf7 Nxe3+) 40... Rb2+ {[%emt 0:01:10]} 41. Kg1 $2 {[%emt 0:22:03] White is weak on the dark squares} (41. Kg3 Nxe3 42. Bxf7 Nxg4 43. Kxg4 Kxf7 44. Kg3) 41... Nxe3 {[%emt 0:03:27] Black is clearly winning.} 42. Qf3 {[%emt 0:04:15]} Rb1+ {[%emt 0:08:24]} 43. Kf2 {[%emt 0:00:05]} Rf1+ {[%emt 0:00:05]} 44. Ke2 {[%emt 0:00:53]} Qe8 {[%emt 0:00:01] ( -> ...Qb5+)} ({Don't go for} 44... Rxf3 $2 45. Bxf7 Rf1 46. Be6 $18 (46. Bg6 Rg1 $11)) 45. Qxe3 {[%emt 0:01:34] [#]} Qb5+ $1 {[%emt 0:00:02]} 46. Qd3 {[%emt 0:00:34] [#]} Re1+ $3 {[%emt 0:00:06][%mdl 512] Weighted Error Value: White=0.44/Black=0.16 (very precise) .  Loses game:     	White=2     	---        Missed win:     	---       	Black=1      Mistake:       	White=3     	Black=1      Inaccurate:     	White=5     	Black=2      OK:         	White=8     	Black=8      Best:        	---       	Black=1      Strong:       	---       	Black=1} 0-1